[Event "Early-Titled-Tuesday-Blitz-August-29-2023"]
[Site "Chess.com"]
[Date "2023.08.29"]
[Round "10"]
[White "krzyzan94"]
[Black "Zhigalko_Sergei"]
[Result "1-0"]
[WhiteElo "2812"]
[BlackElo "2931"]
[TimeControl "180+1"]
[EndTime "9:54:00 PDT"]
[Termination "krzyzan94 won on time"]

1. Nf3 {[%clk 0:03:00.9]} 1... d5 {[%clk 0:03:00.3]} 2. g3 {[%clk 0:03:01.3]}
2... c6 {[%clk 0:02:55.5]} 3. Bg2 {[%clk 0:03:01.4]} 3... Bg4 {[%clk 0:02:55.7]}
4. O-O {[%clk 0:03:01.6]} 4... e6 {[%clk 0:02:56.3]} 5. c4 {[%clk 0:03:00.7]}
5... Nf6 {[%clk 0:02:54.7]} 6. d3 {[%clk 0:03:00.5]} 6... Be7 {[%clk 0:02:52.3]}
7. Nc3 {[%clk 0:02:58]} 7... O-O {[%clk 0:02:52.2]} 8. Qb3 {[%clk 0:02:54]} 8...
Qb6 {[%clk 0:02:52]} 9. Qc2 {[%clk 0:02:49.3]} 9... Nbd7 {[%clk 0:02:51.1]} 10.
Be3 {[%clk 0:02:34.7]} 10... Qa6 {[%clk 0:02:50.7]} 11. b3 {[%clk 0:02:19]}
11... Rfd8 {[%clk 0:02:48.4]} 12. h3 {[%clk 0:02:17]} 12... Bxf3 {[%clk
0:02:47]} 13. exf3 {[%clk 0:02:07.5]} 13... Nf8 {[%clk 0:02:09.9]} 14. Ne2
{[%clk 0:01:58.5]} 14... Rd7 {[%clk 0:01:41.5]} 15. f4 {[%clk 0:01:57.9]} 15...
Rad8 {[%clk 0:01:34.4]} 16. Kh2 {[%clk 0:01:51.7]} 16... h5 {[%clk 0:01:27.6]}
17. a4 {[%clk 0:01:33.9]} 17... Qa5 {[%clk 0:01:18.4]} 18. Bd2 {[%clk
0:01:27.7]} 18... Bb4 {[%clk 0:01:16.2]} 19. Bxb4 {[%clk 0:01:13.1]} 19... Qxb4
{[%clk 0:01:15.6]} 20. c5 {[%clk 0:01:13.8]} 20... d4 {[%clk 0:00:52.5]} 21. a5
{[%clk 0:01:02.6]} 21... h4 {[%clk 0:00:34.9]} 22. Ra4 {[%clk 0:01:00.5]} 22...
Qb5 {[%clk 0:00:34.3]} 23. Rfa1 {[%clk 0:00:47.3]} 23... Qa6 {[%clk 0:00:11]}
24. Qc4 {[%clk 0:00:42.6]} 24... Qxc4 {[%clk 0:00:07]} 25. Rxc4 {[%clk
0:00:42.5]} 25... hxg3+ {[%clk 0:00:07.9]} 26. fxg3 {[%clk 0:00:42.3]} 26... a6
{[%clk 0:00:04.1]} 27. Raa4 {[%clk 0:00:41.9]} 27... Nd5 {[%clk 0:00:04.2]} 28.
Rxd4 {[%clk 0:00:27.2]} 28... Ng6 {[%clk 0:00:04.4]} 29. Be4 {[%clk 0:00:17.9]}
29... Nge7 {[%clk 0:00:04.3]} 30. g4 {[%clk 0:00:16.3]} 30... f5 {[%clk
0:00:04]} 31. Bf3 {[%clk 0:00:14.8]} 31... Kf7 {[%clk 0:00:03.6]} 32. Kg3 {[%clk
0:00:15.3]} 32... g6 {[%clk 0:00:04.1]} 33. Ra1 {[%clk 0:00:11.7]} 33... Nc7
{[%clk 0:00:02.3]} 34. Rxd7 {[%clk 0:00:11]} 34... Rxd7 {[%clk 0:00:03.2]} 35.
d4 {[%clk 0:00:11.7]} 35... Nb5 {[%clk 0:00:02.9]} 36. Rd1 {[%clk 0:00:11.2]}
36... Rd8 {[%clk 0:00:03.5]} 37. g5 {[%clk 0:00:09]} 37... Nd5 {[%clk 0:00:03]}
38. Bxd5 {[%clk 0:00:07.9]} 38... exd5 {[%clk 0:00:03.9]} 39. Kf3 {[%clk
0:00:07.2]} 39... Re8 {[%clk 0:00:04.8]} 40. Ng3 {[%clk 0:00:07.6]} 40... Re7
{[%clk 0:00:04]} 41. h4 {[%clk 0:00:06.4]} 41... Nc3 {[%clk 0:00:04.5]} 42. Rh1
{[%clk 0:00:05.4]} 42... Nb5 {[%clk 0:00:03.4]} 43. h5 {[%clk 0:00:05.5]} 43...
Nxd4+ {[%clk 0:00:03.6]} 44. Kf2 {[%clk 0:00:05.1]} 44... gxh5 {[%clk
0:00:03.5]} 45. Rxh5 {[%clk 0:00:04.8]} 45... Kg7 {[%clk 0:00:03.7]} 46. Rh6
{[%clk 0:00:05.1]} 46... Rf7 {[%clk 0:00:01.8]} 47. Nh5+ {[%clk 0:00:05.7]}
47... Kg8 {[%clk 0:00:01.3]} 48. Rd6 {[%clk 0:00:05.3]} 1-0

[Event "Early-Titled-Tuesday-Blitz-August-29-2023"]
[Site "Chess.com"]
[Date "2023.08.29"]
[Round "10"]
[White "salzikis"]
[Black "AnaKuchava"]
[Result "1-0"]
[WhiteElo "2400"]
[BlackElo "2203"]
[TimeControl "180+1"]
[EndTime "9:54:01 PDT"]
[Termination "salzikis won on time"]

1. e4 {[%clk 0:02:38.8]} 1... c5 {[%clk 0:02:58.4]} 2. Nf3 {[%clk 0:02:36.1]}
2... d6 {[%clk 0:02:58.6]} 3. Bb5+ {[%clk 0:02:36.1]} 3... Bd7 {[%clk
0:02:58.5]} 4. c4 {[%clk 0:02:36.3]} 4... Nf6 {[%clk 0:02:56.3]} 5. Nc3 {[%clk
0:02:36]} 5... Nc6 {[%clk 0:02:48.5]} 6. O-O {[%clk 0:02:34.5]} 6... g6 {[%clk
0:02:45]} 7. d4 {[%clk 0:02:34.3]} 7... cxd4 {[%clk 0:02:44.8]} 8. Nxd4 {[%clk
0:02:33.4]} 8... Bg7 {[%clk 0:02:44.8]} 9. Nxc6 {[%clk 0:02:31.6]} 9... bxc6
{[%clk 0:02:45.7]} 10. Ba4 {[%clk 0:02:31.3]} 10... O-O {[%clk 0:02:44.8]} 11.
Bc2 {[%clk 0:02:28.5]} 11... Qc7 {[%clk 0:02:45]} 12. Re1 {[%clk 0:02:27.2]}
12... e5 {[%clk 0:02:44.8]} 13. b3 {[%clk 0:02:24.6]} 13... Be6 {[%clk
0:02:44.4]} 14. Ba3 {[%clk 0:02:23]} 14... Rfd8 {[%clk 0:02:43.5]} 15. Qe2
{[%clk 0:02:22.7]} 15... Qa5 {[%clk 0:02:40.6]} 16. Bb2 {[%clk 0:02:22.4]} 16...
Rab8 {[%clk 0:02:34.1]} 17. a3 {[%clk 0:02:20.1]} 17... h6 {[%clk 0:02:28.7]}
18. b4 {[%clk 0:02:20.2]} 18... Qc7 {[%clk 0:02:20.5]} 19. Rac1 {[%clk
0:02:18.7]} 19... Ne8 {[%clk 0:02:14.7]} 20. Bb3 {[%clk 0:02:07.8]} 20... a5
{[%clk 0:02:00]} 21. Na2 {[%clk 0:02:00]} 21... axb4 {[%clk 0:01:56.6]} 22. axb4
{[%clk 0:01:59.8]} 22... f5 {[%clk 0:01:47.5]} 23. exf5 {[%clk 0:01:57.2]} 23...
gxf5 {[%clk 0:01:44.3]} 24. Bc3 {[%clk 0:01:56.7]} 24... Nf6 {[%clk 0:01:38]}
25. f3 {[%clk 0:01:54.1]} 25... Ra8 {[%clk 0:01:31.5]} 26. Rb1 {[%clk
0:01:53.1]} 26... Ra3 {[%clk 0:01:19]} 27. Nc1 {[%clk 0:01:52.9]} 27... Kh7
{[%clk 0:01:07.8]} 28. Kh1 {[%clk 0:01:52.2]} 28... Rda8 {[%clk 0:01:00]} 29.
Bb2 {[%clk 0:01:36.8]} 29... R3a7 {[%clk 0:00:54.2]} 30. Bc2 {[%clk 0:01:36.9]}
30... Kh8 {[%clk 0:00:52.4]} 31. Bd3 {[%clk 0:01:32.9]} 31... Nh5 {[%clk
0:00:50.2]} 32. Qc2 {[%clk 0:01:32.1]} 32... Qf7 {[%clk 0:00:44.1]} 33. Ne2
{[%clk 0:01:31.1]} 33... Ra2 {[%clk 0:00:40.8]} 34. Ra1 {[%clk 0:01:24.6]} 34...
Rxa1 {[%clk 0:00:35.8]} 35. Rxa1 {[%clk 0:01:23.6]} 35... Rxa1+ {[%clk
0:00:35.3]} 36. Bxa1 {[%clk 0:01:23.7]} 36... Bf6 {[%clk 0:00:21.7]} 37. Bb2
{[%clk 0:01:06.7]} 37... Bg7 {[%clk 0:00:20.7]} 38. g3 {[%clk 0:01:06.1]} 38...
Nf6 {[%clk 0:00:20.5]} 39. Kg2 {[%clk 0:00:58.3]} 39... Nd7 {[%clk 0:00:15.7]}
40. Ng1 {[%clk 0:00:51.6]} 40... Nb6 {[%clk 0:00:15.8]} 41. c5 {[%clk
0:00:49.9]} 41... dxc5 {[%clk 0:00:11]} 42. bxc5 {[%clk 0:00:49]} 42... Nd5
{[%clk 0:00:10.9]} 43. Qe2 {[%clk 0:00:47.1]} 43... Nb4 {[%clk 0:00:10.3]} 44.
Bb1 {[%clk 0:00:40.9]} 44... Bc4 {[%clk 0:00:10.1]} 45. Qe3 {[%clk 0:00:40.3]}
45... Qd5 {[%clk 0:00:08.2]} 46. Ne2 {[%clk 0:00:36.2]} 46... Nd3 {[%clk
0:00:07.8]} 47. Nc3 {[%clk 0:00:34]} 47... Qd4 {[%clk 0:00:07.2]} 48. Bxd3
{[%clk 0:00:31.2]} 48... Qxd3 {[%clk 0:00:06.8]} 49. Qxd3 {[%clk 0:00:31.2]}
49... Bxd3 {[%clk 0:00:07.7]} 50. Na4 {[%clk 0:00:30.6]} 50... e4 {[%clk
0:00:07.1]} 51. Bxg7+ {[%clk 0:00:29.1]} 51... Kxg7 {[%clk 0:00:08]} 52. Kf2
{[%clk 0:00:29.1]} 52... exf3 {[%clk 0:00:06.4]} 53. Kxf3 {[%clk 0:00:29.2]}
53... Kf6 {[%clk 0:00:07.2]} 54. Kf4 {[%clk 0:00:29.5]} 54... Be4 {[%clk
0:00:06.7]} 55. Nb6 {[%clk 0:00:29.4]} 55... Bh1 {[%clk 0:00:05.9]} 56. Nd7+
{[%clk 0:00:28]} 56... Kg6 {[%clk 0:00:06.1]} 57. Ne5+ {[%clk 0:00:28.1]} 57...
Kf6 {[%clk 0:00:06.6]} 58. Nc4 {[%clk 0:00:26.7]} 58... Bd5 {[%clk 0:00:05.6]}
59. Ne3 {[%clk 0:00:27.4]} 59... Be4 {[%clk 0:00:05.7]} 60. g4 {[%clk
0:00:28.1]} 60... Kg6 {[%clk 0:00:04]} 61. gxf5+ {[%clk 0:00:28.2]} 1-0

[Event "Early-Titled-Tuesday-Blitz-August-29-2023"]
[Site "Chess.com"]
[Date "2023.08.29"]
[Round "10"]
[White "slidingknight2775"]
[Black "jinbojinbo"]
[Result "0-1"]
[WhiteElo "2574"]
[BlackElo "2687"]
[TimeControl "180+1"]
[EndTime "9:54:02 PDT"]
[Termination "jinbojinbo won by resignation"]

1. d4 {[%clk 0:03:00.9]} 1... Nf6 {[%clk 0:02:59.8]} 2. c4 {[%clk 0:03:01.5]}
2... g6 {[%clk 0:02:59.9]} 3. Nc3 {[%clk 0:03:01.7]} 3... Bg7 {[%clk 0:03:00.5]}
4. Nf3 {[%clk 0:03:01.4]} 4... d6 {[%clk 0:03:01.4]} 5. Bg5 {[%clk 0:03:00.3]}
5... O-O {[%clk 0:03:01.1]} 6. e3 {[%clk 0:03:00.3]} 6... Nbd7 {[%clk
0:02:59.7]} 7. Be2 {[%clk 0:02:59.7]} 7... b6 {[%clk 0:02:59.6]} 8. Qc2 {[%clk
0:02:58.5]} 8... Bb7 {[%clk 0:02:59.8]} 9. O-O {[%clk 0:02:58]} 9... h6 {[%clk
0:02:58.6]} 10. Bh4 {[%clk 0:02:58.2]} 10... Qe8 {[%clk 0:02:47.9]} 11. Rfd1
{[%clk 0:02:55]} 11... e5 {[%clk 0:02:47.3]} 12. dxe5 {[%clk 0:02:50.1]} 12...
dxe5 {[%clk 0:02:47.1]} 13. Rac1 {[%clk 0:02:27.4]} 13... Qe6 {[%clk 0:02:15.8]}
14. b4 {[%clk 0:02:09.7]} 14... Rfe8 {[%clk 0:02:09.6]} 15. Nb5 {[%clk
0:01:37.7]} 15... Rec8 {[%clk 0:02:04.1]} 16. c5 {[%clk 0:01:35.2]} 16... Be4
{[%clk 0:01:47.5]} 17. Qb3 {[%clk 0:01:22.4]} 17... Bd5 {[%clk 0:01:41.9]} 18.
Bc4 {[%clk 0:01:16.5]} 18... Bxc4 {[%clk 0:01:41.5]} 19. Qxc4 {[%clk 0:01:15.9]}
19... Qxc4 {[%clk 0:01:36.7]} 20. Rxc4 {[%clk 0:01:16.8]} 20... a6 {[%clk
0:01:31.4]} 21. Na3 {[%clk 0:01:02.4]} 21... b5 {[%clk 0:01:28.8]} 22. Rcc1
{[%clk 0:01:02.1]} 22... c6 {[%clk 0:01:21.1]} 23. Nc2 {[%clk 0:00:41.4]} 23...
Nd5 {[%clk 0:01:04.5]} 24. a3 {[%clk 0:00:11]} 24... e4 {[%clk 0:01:04.2]} 25.
Nfd4 {[%clk 0:00:09.4]} 25... Ne5 {[%clk 0:01:02.6]} 26. Nxc6 {[%clk 0:00:06.8]}
26... Nd3 {[%clk 0:01:00.5]} 27. N6d4 {[%clk 0:00:03.4]} 27... Nxc1 {[%clk
0:00:58.3]} 28. Rxc1 {[%clk 0:00:04.3]} 28... f5 {[%clk 0:00:51.6]} 29. Bg3
{[%clk 0:00:03.8]} 29... Nc3 {[%clk 0:00:25]} 30. Kf1 {[%clk 0:00:03.7]} 30...
a5 {[%clk 0:00:23.6]} 31. Ne1 {[%clk 0:00:03]} 31... axb4 {[%clk 0:00:22.9]} 32.
axb4 {[%clk 0:00:03.9]} 32... Na2 {[%clk 0:00:20.3]} 33. Rb1 {[%clk 0:00:03.3]}
33... Nc3 {[%clk 0:00:15.5]} 34. Rb3 {[%clk 0:00:03.4]} 34... Bxd4 {[%clk
0:00:14.8]} 35. exd4 {[%clk 0:00:04.3]} 35... Nd5 {[%clk 0:00:15.6]} 36. Be5
{[%clk 0:00:04]} 36... Ra2 {[%clk 0:00:15.5]} 37. h3 {[%clk 0:00:02.8]} 37...
Kf7 {[%clk 0:00:15.5]} 38. Nc2 {[%clk 0:00:02.7]} 38... Rxc2 {[%clk 0:00:14.8]}
39. Ra3 {[%clk 0:00:03.5]} 39... Rc1+ {[%clk 0:00:11.7]} 40. Ke2 {[%clk
0:00:03.4]} 40... Rc2+ {[%clk 0:00:12]} 41. Kd1 {[%clk 0:00:03.3]} 41... Rxf2
{[%clk 0:00:11.8]} 42. Ra7+ {[%clk 0:00:03]} 42... Ke8 {[%clk 0:00:09.4]} 43.
Rh7 {[%clk 0:00:03]} 43... e3 {[%clk 0:00:07.8]} 44. Rh8+ {[%clk 0:00:02.9]}
44... Kd7 {[%clk 0:00:07.9]} 45. Rh7+ {[%clk 0:00:03]} 45... Kc6 {[%clk
0:00:08.2]} 46. Ke1 {[%clk 0:00:02.7]} 46... Ra8 {[%clk 0:00:07.2]} 47. Rc7+
{[%clk 0:00:01.4]} 47... Nxc7 {[%clk 0:00:07.3]} 0-1

[Event "Early-Titled-Tuesday-Blitz-August-29-2023"]
[Site "Chess.com"]
[Date "2023.08.29"]
[Round "10"]
[White "Iunusovnuriddin"]
[Black "AquivaRubinstein"]
[Result "1-0"]
[WhiteElo "2328"]
[BlackElo "2464"]
[TimeControl "180+1"]
[EndTime "9:54:03 PDT"]
[Termination "Iunusovnuriddin won by checkmate"]

1. e4 {[%clk 0:02:53.1]} 1... Nf6 {[%clk 0:02:56.9]} 2. e5 {[%clk 0:02:51.4]}
2... Nd5 {[%clk 0:02:55.2]} 3. c4 {[%clk 0:02:51.2]} 3... Nb6 {[%clk 0:02:52.1]}
4. d4 {[%clk 0:02:51.3]} 4... d6 {[%clk 0:02:50.9]} 5. Nf3 {[%clk 0:02:50.8]}
5... Nc6 {[%clk 0:02:46.1]} 6. exd6 {[%clk 0:02:49.3]} 6... cxd6 {[%clk
0:02:45.6]} 7. Be2 {[%clk 0:02:47.1]} 7... g6 {[%clk 0:02:45.8]} 8. O-O {[%clk
0:02:46.5]} 8... Bg7 {[%clk 0:02:46.2]} 9. h3 {[%clk 0:02:46.4]} 9... O-O {[%clk
0:02:45.4]} 10. Nc3 {[%clk 0:02:46.3]} 10... e5 {[%clk 0:02:45]} 11. Be3 {[%clk
0:02:14.9]} 11... Bf5 {[%clk 0:02:20.8]} 12. dxe5 {[%clk 0:02:06.2]} 12... dxe5
{[%clk 0:02:17.5]} 13. Qxd8 {[%clk 0:02:06.7]} 13... Rfxd8 {[%clk 0:02:14.8]}
14. c5 {[%clk 0:01:30.1]} 14... Nd5 {[%clk 0:01:57.2]} 15. Nxd5 {[%clk
0:01:29.7]} 15... Rxd5 {[%clk 0:01:58.1]} 16. Bc4 {[%clk 0:01:30.3]} 16... Rd7
{[%clk 0:01:53.6]} 17. Rad1 {[%clk 0:01:14]} 17... Rad8 {[%clk 0:01:53.1]} 18.
Rxd7 {[%clk 0:00:54.5]} 18... Rxd7 {[%clk 0:01:54]} 19. b3 {[%clk 0:00:54.4]}
19... h6 {[%clk 0:01:31.9]} 20. g4 {[%clk 0:00:45]} 20... Be4 {[%clk 0:01:22.7]}
21. Nd2 {[%clk 0:00:44.2]} 21... Bd3 {[%clk 0:01:09.2]} 22. Rc1 {[%clk
0:00:16.5]} 22... Bxc4 {[%clk 0:00:45.5]} 23. Nxc4 {[%clk 0:00:17.4]} 23... f5
{[%clk 0:00:32.5]} 24. f4 {[%clk 0:00:13.5]} 24... e4 {[%clk 0:00:29.9]} 25.
gxf5 {[%clk 0:00:13.1]} 25... gxf5 {[%clk 0:00:29.6]} 26. Nd6 {[%clk 0:00:13.5]}
26... Nd4 {[%clk 0:00:23.1]} 27. Bxd4 {[%clk 0:00:09.8]} 27... Bxd4+ {[%clk
0:00:22.8]} 28. Kf1 {[%clk 0:00:10.5]} 28... Be3 {[%clk 0:00:16.4]} 29. Re1
{[%clk 0:00:10.8]} 29... Bxc5 {[%clk 0:00:09.5]} 30. Nxf5 {[%clk 0:00:11]} 30...
Rd2 {[%clk 0:00:05.9]} 31. Rxe4 {[%clk 0:00:09.5]} 31... Rxa2 {[%clk 0:00:05.2]}
32. Nxh6+ {[%clk 0:00:09.9]} 32... Kg7 {[%clk 0:00:04.6]} 33. Ng4 {[%clk
0:00:10.2]} 33... Rb2 {[%clk 0:00:03.9]} 34. f5 {[%clk 0:00:10.2]} 34... Rxb3
{[%clk 0:00:01.8]} 35. f6+ {[%clk 0:00:10.4]} 35... Kg6 {[%clk 0:00:02.4]} 36.
Rf4 {[%clk 0:00:09]} 36... Bd6 {[%clk 0:00:02]} 37. Rf2 {[%clk 0:00:06.2]} 37...
Kf7 {[%clk 0:00:01.5]} 38. Nh6+ {[%clk 0:00:05.8]} 38... Kf8 {[%clk 0:00:02.1]}
39. f7 {[%clk 0:00:05.2]} 39... Rxh3 {[%clk 0:00:02.6]} 40. Nf5 {[%clk
0:00:05.2]} 40... Rh1+ {[%clk 0:00:03]} 41. Kg2 {[%clk 0:00:05]} 41... Be7
{[%clk 0:00:03.6]} 42. Nxe7 {[%clk 0:00:04.8]} 42... Rh7 {[%clk 0:00:04.3]} 43.
Ng6+ {[%clk 0:00:04.9]} 43... Kg7 {[%clk 0:00:04.9]} 44. f8=Q+ {[%clk
0:00:05.5]} 44... Kxg6 {[%clk 0:00:05.7]} 45. Rf6+ {[%clk 0:00:05.1]} 45... Kh5
{[%clk 0:00:06.2]} 46. Rf5+ {[%clk 0:00:04.9]} 46... Kg6 {[%clk 0:00:06.3]} 47.
Qf7+ {[%clk 0:00:05.2]} 47... Kh6 {[%clk 0:00:06.2]} 48. Qf6# {[%clk 0:00:05.1]}
1-0

[Event "Early-Titled-Tuesday-Blitz-August-29-2023"]
[Site "Chess.com"]
[Date "2023.08.29"]
[Round "10"]
[White "AndreiITrifan"]
[Black "kasun_bole"]
[Result "0-1"]
[WhiteElo "2560"]
[BlackElo "2369"]
[TimeControl "180+1"]
[EndTime "9:54:07 PDT"]
[Termination "kasun_bole won by checkmate"]

1. e4 {[%clk 0:02:59]} 1... c5 {[%clk 0:02:59.6]} 2. Nf3 {[%clk 0:02:58.5]} 2...
d6 {[%clk 0:02:59.8]} 3. Bc4 {[%clk 0:02:58.1]} 3... Nf6 {[%clk 0:02:59.3]} 4.
d3 {[%clk 0:02:57.9]} 4... a6 {[%clk 0:02:58]} 5. a4 {[%clk 0:02:58]} 5... g6
{[%clk 0:02:57.6]} 6. O-O {[%clk 0:02:57.4]} 6... Bg7 {[%clk 0:02:58]} 7. h3
{[%clk 0:02:55.3]} 7... O-O {[%clk 0:02:58.1]} 8. Re1 {[%clk 0:02:55.4]} 8... e5
{[%clk 0:02:58.4]} 9. Nbd2 {[%clk 0:02:48.6]} 9... Nc6 {[%clk 0:02:56.9]} 10.
Nf1 {[%clk 0:02:46.8]} 10... Rb8 {[%clk 0:02:56.6]} 11. c3 {[%clk 0:02:38]}
11... b5 {[%clk 0:02:56.4]} 12. axb5 {[%clk 0:02:38.9]} 12... axb5 {[%clk
0:02:57.3]} 13. Bb3 {[%clk 0:02:39.3]} 13... h6 {[%clk 0:02:57.8]} 14. Ng3
{[%clk 0:02:38.6]} 14... Kh7 {[%clk 0:02:57.6]} 15. Bc2 {[%clk 0:02:36.7]} 15...
b4 {[%clk 0:02:56.6]} 16. Be3 {[%clk 0:02:28.5]} 16... bxc3 {[%clk 0:02:52.5]}
17. bxc3 {[%clk 0:02:29.4]} 17... Be6 {[%clk 0:02:52.9]} 18. Qd2 {[%clk
0:02:25.1]} 18... Ng8 {[%clk 0:02:40]} 19. d4 {[%clk 0:02:17.2]} 19... cxd4
{[%clk 0:02:39.2]} 20. cxd4 {[%clk 0:02:18.1]} 20... Bb3 {[%clk 0:02:38.7]} 21.
d5 {[%clk 0:02:14]} 21... Nce7 {[%clk 0:02:32.3]} 22. Reb1 {[%clk 0:02:11.1]}
22... Bxc2 {[%clk 0:02:31]} 23. Qxc2 {[%clk 0:02:11.1]} 23... Rc8 {[%clk
0:02:30.7]} 24. Qa4 {[%clk 0:01:57.5]} 24... f5 {[%clk 0:02:29.8]} 25. exf5
{[%clk 0:01:52.6]} 25... gxf5 {[%clk 0:02:27.8]} 26. Bb6 {[%clk 0:01:41.4]}
26... Qe8 {[%clk 0:02:16]} 27. Qa3 {[%clk 0:01:34.2]} 27... Qg6 {[%clk
0:02:10.2]} 28. Rd1 {[%clk 0:01:22.5]} 28... f4 {[%clk 0:02:02.2]} 29. Nf1
{[%clk 0:01:07]} 29... Nf5 {[%clk 0:01:58.8]} 30. N1d2 {[%clk 0:00:59.5]} 30...
Rce8 {[%clk 0:01:55.9]} 31. Re1 {[%clk 0:00:52.9]} 31... e4 {[%clk 0:01:46.2]}
32. Nxe4 {[%clk 0:00:49.8]} 32... Rxe4 {[%clk 0:01:43.1]} 33. Rxe4 {[%clk
0:00:49.7]} 33... Bxa1 {[%clk 0:01:39.2]} 34. Qxa1 {[%clk 0:00:41.3]} 34... Nh4
{[%clk 0:01:38.2]} 35. Nxh4 {[%clk 0:00:35.7]} 35... Qxe4 {[%clk 0:01:37.1]} 36.
Nf3 {[%clk 0:00:32.3]} 36... Rf7 {[%clk 0:01:34.9]} 37. Qa8 {[%clk 0:00:26.4]}
37... Rg7 {[%clk 0:01:33.8]} 38. Bd4 {[%clk 0:00:19.6]} 38... Qxf3 {[%clk
0:01:17.8]} 39. Bxg7 {[%clk 0:00:19.9]} 39... Qd1+ {[%clk 0:01:18.1]} 40. Kh2
{[%clk 0:00:20.5]} 40... Kxg7 {[%clk 0:01:19]} 41. Qb7+ {[%clk 0:00:21.1]} 41...
Kg6 {[%clk 0:01:18.5]} 42. Qb8 {[%clk 0:00:20]} 42... Qxd5 {[%clk 0:01:17.6]}
43. Qe8+ {[%clk 0:00:19.5]} 43... Qf7 {[%clk 0:01:16.1]} 44. Qd8 {[%clk
0:00:20]} 44... d5 {[%clk 0:01:07.6]} 45. Qd6+ {[%clk 0:00:20.5]} 45... Kh7
{[%clk 0:01:05.8]} 46. f3 {[%clk 0:00:18.9]} 46... Ne7 {[%clk 0:01:04.2]} 47.
Qd7 {[%clk 0:00:18.3]} 47... Kg7 {[%clk 0:01:03.1]} 48. h4 {[%clk 0:00:17.9]}
48... h5 {[%clk 0:01:02]} 49. Kg1 {[%clk 0:00:16.5]} 49... Qf6 {[%clk
0:01:01.1]} 50. Qc7 {[%clk 0:00:15.2]} 50... Qxh4 {[%clk 0:00:59.7]} 51. Qe5+
{[%clk 0:00:15.7]} 51... Qf6 {[%clk 0:00:59.5]} 52. Qxh5 {[%clk 0:00:16.2]}
52... d4 {[%clk 0:00:59.3]} 53. Qg4+ {[%clk 0:00:16.5]} 53... Kf7 {[%clk
0:00:59.2]} 54. Qd7 {[%clk 0:00:17.4]} 54... Qe5 {[%clk 0:00:58.4]} 55. Kh2
{[%clk 0:00:17]} 55... Kf6 {[%clk 0:00:56.6]} 56. Qd8 {[%clk 0:00:15]} 56... Ke6
{[%clk 0:00:49.2]} 57. Kg1 {[%clk 0:00:12.9]} 57... Qe3+ {[%clk 0:00:45.4]} 58.
Kh2 {[%clk 0:00:13]} 58... d3 {[%clk 0:00:45.7]} 59. g3 {[%clk 0:00:09.9]} 59...
d2 {[%clk 0:00:44.4]} 60. gxf4 {[%clk 0:00:09.5]} 60... Qe2+ {[%clk 0:00:44.3]}
61. Kg3 {[%clk 0:00:10.4]} 61... d1=Q {[%clk 0:00:44.6]} 62. Qb6+ {[%clk
0:00:07.6]} 62... Kf7 {[%clk 0:00:44.2]} 63. f5 {[%clk 0:00:05.1]} 63... Qxf3+
{[%clk 0:00:43.7]} 64. Kh2 {[%clk 0:00:04.5]} 64... Qdh1# {[%clk 0:00:43.4]} 0-1

[Event "Early-Titled-Tuesday-Blitz-August-29-2023"]
[Site "Chess.com"]
[Date "2023.08.29"]
[Round "10"]
[White "likantrophuss"]
[Black "Eternauta2400"]
[Result "0-1"]
[WhiteElo "2579"]
[BlackElo "2798"]
[TimeControl "180+1"]
[EndTime "9:54:08 PDT"]
[Termination "Eternauta2400 won by checkmate"]

1. d4 {[%clk 0:03:00.9]} 1... Nf6 {[%clk 0:02:59.3]} 2. c4 {[%clk 0:03:00.1]}
2... e6 {[%clk 0:02:59]} 3. Nf3 {[%clk 0:02:59.1]} 3... d5 {[%clk 0:02:58.9]} 4.
g3 {[%clk 0:02:58.7]} 4... c6 {[%clk 0:02:58.6]} 5. Bg2 {[%clk 0:02:58.3]} 5...
b6 {[%clk 0:02:58.4]} 6. O-O {[%clk 0:02:58.1]} 6... Be7 {[%clk 0:02:59]} 7. Qc2
{[%clk 0:02:58.1]} 7... O-O {[%clk 0:02:58.6]} 8. Nbd2 {[%clk 0:02:57.9]} 8...
Bb7 {[%clk 0:02:58.5]} 9. b3 {[%clk 0:02:56.8]} 9... Nbd7 {[%clk 0:02:57.5]} 10.
Bb2 {[%clk 0:02:57]} 10... Rc8 {[%clk 0:02:57.1]} 11. e4 {[%clk 0:02:56.6]}
11... c5 {[%clk 0:02:57.4]} 12. e5 {[%clk 0:02:54.7]} 12... Ne8 {[%clk
0:02:55.8]} 13. cxd5 {[%clk 0:02:54]} 13... Bxd5 {[%clk 0:02:53.1]} 14. Rac1
{[%clk 0:02:52.4]} 14... Nc7 {[%clk 0:02:51]} 15. Ne4 {[%clk 0:02:47.8]} 15...
h6 {[%clk 0:02:47.9]} 16. dxc5 {[%clk 0:02:36.4]} 16... Nxc5 {[%clk 0:02:46.1]}
17. Nxc5 {[%clk 0:02:26.8]} 17... Bxc5 {[%clk 0:02:47]} 18. Qd2 {[%clk
0:02:14.6]} 18... Qe7 {[%clk 0:02:41]} 19. Qf4 {[%clk 0:02:14]} 19... Rfd8
{[%clk 0:02:38]} 20. h4 {[%clk 0:02:13.3]} 20... Na6 {[%clk 0:02:35.7]} 21. Bc3
{[%clk 0:01:27.7]} 21... Ba3 {[%clk 0:02:25.6]} 22. Rc2 {[%clk 0:01:27.7]} 22...
Rc7 {[%clk 0:02:20.9]} 23. Qa4 {[%clk 0:01:06.1]} 23... Nb8 {[%clk 0:01:47]} 24.
Bb4 {[%clk 0:01:05.4]} 24... Bxb4 {[%clk 0:01:41.6]} 25. Rxc7 {[%clk 0:01:05.3]}
25... Qxc7 {[%clk 0:01:42.5]} 26. Qxb4 {[%clk 0:01:05.9]} 26... Qc2 {[%clk
0:01:34.7]} 27. Nd4 {[%clk 0:01:01.6]} 27... Qxa2 {[%clk 0:01:33.2]} 28. Bxd5
{[%clk 0:01:01.5]} 28... Rxd5 {[%clk 0:01:33.8]} 29. Rc1 {[%clk 0:00:45.4]}
29... Qa6 {[%clk 0:01:20.9]} 30. Rc7 {[%clk 0:00:41.4]} 30... Qa1+ {[%clk
0:01:20.2]} 31. Kh2 {[%clk 0:00:39.7]} 31... Qxd4 {[%clk 0:01:09]} 32. Qxd4
{[%clk 0:00:30]} 32... Rxd4 {[%clk 0:01:09.9]} 33. Rc8+ {[%clk 0:00:30.8]} 33...
Kh7 {[%clk 0:01:10.8]} 34. Rxb8 {[%clk 0:00:31.7]} 34... Rd7 {[%clk 0:01:06.4]}
35. h5 {[%clk 0:00:30.7]} 35... g6 {[%clk 0:01:01.5]} 36. hxg6+ {[%clk
0:00:22.9]} 36... Kxg6 {[%clk 0:01:02.4]} 37. g4 {[%clk 0:00:23.4]} 37... Rd5
{[%clk 0:00:56.1]} 38. f4 {[%clk 0:00:22.6]} 38... Rd4 {[%clk 0:00:53.3]} 39.
Kg3 {[%clk 0:00:23]} 39... Rd3+ {[%clk 0:00:53.5]} 40. Kh4 {[%clk 0:00:23.6]}
40... Rxb3 {[%clk 0:00:53.6]} 41. Rb7 {[%clk 0:00:24.2]} 41... a5 {[%clk
0:00:51.6]} 42. Ra7 {[%clk 0:00:21.7]} 42... Rb4 {[%clk 0:00:49.7]} 43. Kg3
{[%clk 0:00:20.8]} 43... a4 {[%clk 0:00:49.8]} 44. Ra6 {[%clk 0:00:21.1]} 44...
Rb3+ {[%clk 0:00:49.4]} 45. Kh4 {[%clk 0:00:21.3]} 45... a3 {[%clk 0:00:49.8]}
46. Ra7 {[%clk 0:00:17]} 46... b5 {[%clk 0:00:49]} 47. Ra6 {[%clk 0:00:17.1]}
47... Rb4 {[%clk 0:00:47]} 48. Kg3 {[%clk 0:00:16]} 48... Rb3+ {[%clk
0:00:46.2]} 49. Kh4 {[%clk 0:00:16.2]} 49... b4 {[%clk 0:00:31.1]} 50. f5+
{[%clk 0:00:16.3]} 50... Kg7 {[%clk 0:00:31.8]} 51. Ra7 {[%clk 0:00:13.4]} 51...
Kf8 {[%clk 0:00:16.2]} 52. Ra8+ {[%clk 0:00:13.6]} 52... Ke7 {[%clk 0:00:15.6]}
53. Ra7+ {[%clk 0:00:14.2]} 53... Ke8 {[%clk 0:00:16.1]} 54. Ra8+ {[%clk
0:00:14.6]} 54... Kd7 {[%clk 0:00:16.4]} 55. Ra7+ {[%clk 0:00:15.1]} 55... Kc6
{[%clk 0:00:16.8]} 56. Rxf7 {[%clk 0:00:15.4]} 56... a2 {[%clk 0:00:17.1]} 57.
Re7 {[%clk 0:00:09.3]} 57... a1=Q {[%clk 0:00:16.1]} 58. Rxe6+ {[%clk
0:00:10.2]} 58... Kd5 {[%clk 0:00:15.4]} 59. Re7 {[%clk 0:00:09.8]} 59... Qh1#
{[%clk 0:00:14.7]} 0-1